[Event "*** Titled Tuesday Blitz"]
[Site "Chess.com"]
[Date "2018.06.05"]
[Round "8"]
[White "Tibmat"]
[Black "gmjlh"]
[Result "0-1"]
[WhiteElo "2404"]
[BlackElo "2622"]
[TimeControl "180+2"]
[EndTime "14:56:55 PDT"]
[Termination "gmjlh won on time"]

1. Nf3 {[%clk 0:02:56.2]} 1... Nf6 {[%clk 0:03:00.7]} 2. c4 {[%clk 0:02:56.9]}
2... g6 {[%clk 0:02:59.9]} 3. b3 {[%clk 0:02:58.1]} 3... Bg7 {[%clk 0:03:00.3]}
4. Bb2 {[%clk 0:03:00]} 4... O-O {[%clk 0:03:01.3]} 5. g3 {[%clk 0:03:01.7]}
5... e6 {[%clk 0:02:56.8]} 6. Bg2 {[%clk 0:03:01.3]} 6... d5 {[%clk 0:02:58.3]}
7. O-O {[%clk 0:03:02.9]} 7... a5 {[%clk 0:02:55.3]} 8. Nc3 {[%clk 0:03:00.3]}
8... Nc6 {[%clk 0:02:51.8]} 9. d4 {[%clk 0:02:56.8]} 9... Ne4 {[%clk 0:02:49.2]}
10. e3 {[%clk 0:02:52.1]} 10... f5 {[%clk 0:02:44.1]} 11. Rc1 {[%clk 0:02:28.9]}
11... g5 {[%clk 0:02:36.2]} 12. Ne1 {[%clk 0:02:22.2]} 12... g4 {[%clk
0:01:54.5]} 13. Nd3 {[%clk 0:02:14.2]} 13... Ne7 {[%clk 0:01:55.2]} 14. Ne2
{[%clk 0:02:04.5]} 14... Ng6 {[%clk 0:01:50.9]} 15. Nef4 {[%clk 0:01:38.5]}
15... c6 {[%clk 0:01:39.6]} 16. Qc2 {[%clk 0:01:17.5]} 16... Bd7 {[%clk
0:01:30.9]} 17. Rfd1 {[%clk 0:00:49.7]} 17... Qe7 {[%clk 0:01:10.2]} 18. Ne5
{[%clk 0:00:46.9]} 18... Bxe5 {[%clk 0:01:01.4]} 19. dxe5 {[%clk 0:00:48.8]}
19... Nxf4 {[%clk 0:01:01.4]} 20. exf4 {[%clk 0:00:48.1]} 20... Rfc8 {[%clk
0:00:57.9]} 21. Bxe4 {[%clk 0:00:31.3]} 21... fxe4 {[%clk 0:00:58.2]} 22. cxd5
{[%clk 0:00:30.9]} 22... cxd5 {[%clk 0:00:50.6]} 23. Qd2 {[%clk 0:00:31.9]}
23... a4 {[%clk 0:00:24.7]} 24. b4 {[%clk 0:00:33.1]} 24... Qf8 {[%clk
0:00:19.7]} 25. a3 {[%clk 0:00:25.6]} 25... Bb5 {[%clk 0:00:19]} 26. Bd4 {[%clk
0:00:22.5]} 26... Bc4 {[%clk 0:00:18.8]} 27. Bc5 {[%clk 0:00:21]} 27... Rxc5
{[%clk 0:00:09.5]} 28. bxc5 {[%clk 0:00:22.9]} 28... Qxc5 {[%clk 0:00:10.9]} 29.
Qb4 {[%clk 0:00:24.8]} 29... Qxb4 {[%clk 0:00:11.7]} 30. axb4 {[%clk 0:00:26.7]}
30... a3 {[%clk 0:00:13]} 31. Ra1 {[%clk 0:00:24.3]} 31... a2 {[%clk 0:00:14]}
32. Rd2 {[%clk 0:00:25.4]} 32... Ra4 {[%clk 0:00:14.2]} 33. Rb2 {[%clk
0:00:26.4]} 33... b5 {[%clk 0:00:15.1]} 34. Kg2 {[%clk 0:00:21.4]} 34... Kf7
{[%clk 0:00:15.2]} 35. h3 {[%clk 0:00:22.1]} 35... h5 {[%clk 0:00:16.2]} 36.
hxg4 {[%clk 0:00:24]} 36... hxg4 {[%clk 0:00:17.9]} 37. Rd2 {[%clk 0:00:20.1]}
37... Ke7 {[%clk 0:00:15.2]} 38. Rb2 {[%clk 0:00:21.1]} 38... d4 {[%clk
0:00:16.1]} 39. Rd2 {[%clk 0:00:21.3]} 39... Rxb4 {[%clk 0:00:14.4]} 40. Rxd4
{[%clk 0:00:19.2]} 40... Rb1 {[%clk 0:00:07.6]} 41. Rd1 {[%clk 0:00:17.5]} 41...
Rxd1 {[%clk 0:00:08.4]} 42. Rxd1 {[%clk 0:00:19.4]} 42... b4 {[%clk 0:00:10]}
0-1

[Event "*** Titled Tuesday Blitz"]
[Site "Chess.com"]
[Date "2018.06.05"]
[Round "8"]
[White "SamCopeland"]
[Black "akashcheck"]
[Result "1/2-1/2"]
[WhiteElo "2038"]
[BlackElo "2171"]
[TimeControl "180+2"]
[EndTime "14:56:57 PDT"]
[Termination "Game drawn by agreement"]

1. e4 {[%clk 0:03:01.9]} 1... e5 {[%clk 0:03:00.9]} 2. Nf3 {[%clk 0:03:00.8]}
2... Nc6 {[%clk 0:03:02]} 3. Bc4 {[%clk 0:03:00.4]} 3... Nf6 {[%clk 0:03:01.4]}
4. d4 {[%clk 0:03:00.3]} 4... exd4 {[%clk 0:03:00.4]} 5. O-O {[%clk 0:03:00.8]}
5... Nxe4 {[%clk 0:03:01.5]} 6. Re1 {[%clk 0:03:01.4]} 6... d5 {[%clk 0:03:03]}
7. Bxd5 {[%clk 0:03:02.8]} 7... Qxd5 {[%clk 0:03:04.8]} 8. Nc3 {[%clk
0:03:03.6]} 8... Qd7 {[%clk 0:03:06.4]} 9. Nxe4 {[%clk 0:03:05.5]} 9... Be7
{[%clk 0:03:04.6]} 10. Bg5 {[%clk 0:02:55.9]} 10... O-O {[%clk 0:03:05.4]} 11.
Bxe7 {[%clk 0:02:56.4]} 11... Qxe7 {[%clk 0:03:07.3]} 12. Nxd4 {[%clk
0:02:56.7]} 12... Nxd4 {[%clk 0:03:09.2]} 13. Qxd4 {[%clk 0:02:58.2]} 13... Bd7
{[%clk 0:03:10.5]} 14. Nc5 {[%clk 0:02:10.6]} 14... Be6 {[%clk 0:03:08.6]} 15.
Nxb7 {[%clk 0:01:58]} 15... Qg5 {[%clk 0:03:00.9]} 16. Re5 {[%clk 0:01:45.1]}
16... Qf6 {[%clk 0:02:59.7]} 17. Rae1 {[%clk 0:01:41.6]} 17... Rfd8 {[%clk
0:02:58.7]} 18. Nxd8 {[%clk 0:01:41.3]} 18... Rxd8 {[%clk 0:02:58.2]} 19. Qc3
{[%clk 0:01:37]} 19... h6 {[%clk 0:02:46.2]} 20. a3 {[%clk 0:01:32.7]} 20... Qf4
{[%clk 0:02:35.2]} 21. R5e4 {[%clk 0:01:15.1]} 21... Qf5 {[%clk 0:02:30.1]} 22.
R4e3 {[%clk 0:01:15.1]} 22... Rd7 {[%clk 0:02:28.8]} 23. Rg3 {[%clk 0:01:13.9]}
23... f6 {[%clk 0:02:20.4]} 24. Rge3 {[%clk 0:01:12.7]} 24... Bd5 {[%clk
0:02:21.2]} 25. Qd3 {[%clk 0:00:57.1]} 25... Qg5 {[%clk 0:02:00.9]} 26. Re8+
{[%clk 0:00:54.2]} 26... Kf7 {[%clk 0:02:01.7]} 27. Qg3 {[%clk 0:00:48]} 27...
Qf5 {[%clk 0:01:53.3]} 28. h4 {[%clk 0:00:38.2]} 28... Qxc2 {[%clk 0:01:51.8]}
29. h5 {[%clk 0:00:37.9]} 29... Qf5 {[%clk 0:01:51.7]} 30. Qe3 {[%clk 0:00:22]}
30... Qxh5 {[%clk 0:01:39.4]} 31. Rb8 {[%clk 0:00:15.7]} 31... Kg6 {[%clk
0:01:33.4]} 32. Qe8+ {[%clk 0:00:16]} 32... Kg5 {[%clk 0:01:32.8]} 33. Qxh5+
{[%clk 0:00:16.3]} 33... Kxh5 {[%clk 0:01:31.4]} 34. Rb5 {[%clk 0:00:17]} 34...
Kg6 {[%clk 0:01:31.8]} 35. Rd1 {[%clk 0:00:16.9]} 35... c6 {[%clk 0:01:31.4]}
36. Ra5 {[%clk 0:00:17.8]} 36... Re7 {[%clk 0:01:30.6]} 37. b4 {[%clk 0:00:18]}
37... h5 {[%clk 0:01:31.6]} 38. b5 {[%clk 0:00:18.8]} 38... Kh6 {[%clk
0:01:25.9]} 39. bxc6 {[%clk 0:00:18.4]} 39... Bxc6 {[%clk 0:01:27.8]} 40. Kh2
{[%clk 0:00:17.8]} 40... Re2 {[%clk 0:01:18.3]} 41. Kg1 {[%clk 0:00:18.2]} 41...
Ra2 {[%clk 0:01:16.8]} 42. Rc1 {[%clk 0:00:16.9]} 42... Be4 {[%clk 0:01:17.1]}
43. Rcc5 {[%clk 0:00:17.3]} 43... g5 {[%clk 0:01:17.5]} 44. Ra6 {[%clk
0:00:17.2]} 44... Kg6 {[%clk 0:01:17.6]} 45. Rc7 {[%clk 0:00:17.5]} 45... g4
{[%clk 0:01:16.9]} 46. Raxa7 {[%clk 0:00:17.4]} 46... g3 {[%clk 0:01:16.2]} 47.
Rg7+ {[%clk 0:00:16.4]} 47... Kf5 {[%clk 0:01:16.3]} 48. Rxg3 {[%clk 0:00:18.3]}
48... h4 {[%clk 0:01:15.8]} 49. Re3 {[%clk 0:00:19]} 49... Kf4 {[%clk
0:01:14.2]} 50. Ra4 {[%clk 0:00:19.7]} 50... f5 {[%clk 0:01:14.3]} 51. Rc3
{[%clk 0:00:16.7]} 51... Kg5 {[%clk 0:01:12.7]} 52. Rb4 {[%clk 0:00:17.7]} 52...
Ra1+ {[%clk 0:01:06.7]} 53. Kh2 {[%clk 0:00:18]} 53... Ra2 {[%clk 0:01:08.6]}
54. a4 {[%clk 0:00:16.5]} 54... Rxf2 {[%clk 0:01:09.1]} 55. Rc5 {[%clk
0:00:13.8]} 55... Rxg2+ {[%clk 0:01:08.6]} 56. Kh3 {[%clk 0:00:15]} 56... Rg3+
{[%clk 0:01:09.4]} 57. Kh2 {[%clk 0:00:16]} 57... Rg2+ {[%clk 0:01:07.5]} 58.
Kh3 {[%clk 0:00:16.7]} 58... Rg3+ {[%clk 0:01:08.5]} 59. Kh2 {[%clk 0:00:16.9]}
1/2-1/2

[Event "*** Titled Tuesday Blitz"]
[Site "Chess.com"]
[Date "2018.06.05"]
[Round "8"]
[White "dretch"]
[Black "SantoBlue"]
[Result "1-0"]
[WhiteElo "2757"]
[BlackElo "2782"]
[TimeControl "180+2"]
[EndTime "14:57:00 PDT"]
[Termination "dretch won by resignation"]

1. d4 {[%clk 0:03:01.9]} 1... Nf6 {[%clk 0:02:57.5]} 2. c4 {[%clk 0:03:02.4]}
2... d6 {[%clk 0:02:56.3]} 3. Nf3 {[%clk 0:03:02.7]} 3... Bf5 {[%clk 0:02:55.2]}
4. Nc3 {[%clk 0:03:00.4]} 4... g6 {[%clk 0:02:53.9]} 5. d5 {[%clk 0:03:00.5]}
5... Bg7 {[%clk 0:02:52.1]} 6. Nd4 {[%clk 0:03:01.7]} 6... Bd7 {[%clk
0:02:52.4]} 7. e4 {[%clk 0:03:02.6]} 7... O-O {[%clk 0:02:53.6]} 8. Be2 {[%clk
0:03:03.6]} 8... c5 {[%clk 0:02:54.7]} 9. Nc2 {[%clk 0:03:03.6]} 9... a6 {[%clk
0:02:54.6]} 10. a4 {[%clk 0:02:59.4]} 10... Ne8 {[%clk 0:02:52.3]} 11. O-O
{[%clk 0:02:58.5]} 11... Nc7 {[%clk 0:02:53.1]} 12. a5 {[%clk 0:02:58.3]} 12...
Be8 {[%clk 0:02:45.2]} 13. Bg5 {[%clk 0:02:54.5]} 13... Nd7 {[%clk 0:02:46]} 14.
Qd2 {[%clk 0:02:51.6]} 14... Rb8 {[%clk 0:02:41.4]} 15. b3 {[%clk 0:02:45.5]}
15... b6 {[%clk 0:02:37.5]} 16. axb6 {[%clk 0:02:46.7]} 16... Rxb6 {[%clk
0:02:39.4]} 17. Ra3 {[%clk 0:02:47.2]} 17... f6 {[%clk 0:02:29.6]} 18. Bh6
{[%clk 0:02:44.9]} 18... Qb8 {[%clk 0:02:28.2]} 19. Bxg7 {[%clk 0:02:45.3]}
19... Kxg7 {[%clk 0:02:30.1]} 20. Rb1 {[%clk 0:02:21.2]} 20... Bf7 {[%clk
0:02:15.4]} 21. Ne3 {[%clk 0:02:19.9]} 21... Qa7 {[%clk 0:02:06.4]} 22. Bd1
{[%clk 0:02:18.5]} 22... Rfb8 {[%clk 0:02:05.4]} 23. Bc2 {[%clk 0:02:19.4]}
23... Rb4 {[%clk 0:02:02.5]} 24. Rba1 {[%clk 0:02:18.8]} 24... R4b6 {[%clk
0:01:59.8]} 25. h4 {[%clk 0:02:12.4]} 25... h5 {[%clk 0:01:59.2]} 26. f4 {[%clk
0:02:09.9]} 26... Qb7 {[%clk 0:01:41.4]} 27. Rf1 {[%clk 0:01:54.5]} 27... Qc8
{[%clk 0:01:41.3]} 28. Rf3 {[%clk 0:01:54.3]} 28... Qh8 {[%clk 0:01:40.7]} 29.
Qf2 {[%clk 0:01:52.4]} 29... Kg8 {[%clk 0:01:32.1]} 30. Qg3 {[%clk 0:01:42.4]}
30... Qg7 {[%clk 0:01:31.4]} 31. Qh3 {[%clk 0:01:40.5]} 31... Rd8 {[%clk
0:01:07.6]} 32. Rg3 {[%clk 0:01:34.6]} 32... Kf8 {[%clk 0:01:06.8]} 33. Kh1
{[%clk 0:01:24.8]} 33... Qh8 {[%clk 0:00:59.8]} 34. Bd1 {[%clk 0:01:17.5]} 34...
f5 {[%clk 0:00:48.1]} 35. exf5 {[%clk 0:01:02.3]} 35... Qxc3 {[%clk 0:00:44.4]}
36. fxg6 {[%clk 0:01:03.3]} 36... Be8 {[%clk 0:00:28.5]} 37. Qf5+ {[%clk
0:00:05.9]} 37... Nf6 {[%clk 0:00:17.5]} 38. Qg5 {[%clk 0:00:06.8]} 38... Kg8
{[%clk 0:00:13.5]} 39. Nf5 {[%clk 0:00:05.2]} 39... Qe1+ {[%clk 0:00:14.5]} 40.
Kh2 {[%clk 0:00:06.4]} 40... Bd7 {[%clk 0:00:08.5]} 41. Re3 {[%clk 0:00:03.5]}
41... Qxd1 {[%clk 0:00:04.1]} 42. Nh6+ {[%clk 0:00:04]} 42... Kh8 {[%clk
0:00:02.5]} 43. Rxe7 {[%clk 0:00:04.1]} 43... Rg8 {[%clk 0:00:02.1]} 1-0

[Event "*** Titled Tuesday Blitz"]
[Site "Chess.com"]
[Date "2018.06.05"]
[Round "8"]
[White "nurmiTV"]
[Black "MPGM"]
[Result "0-1"]
[WhiteElo "2476"]
[BlackElo "2392"]
[TimeControl "180+2"]
[EndTime "14:57:01 PDT"]
[Termination "MPGM won by resignation"]

1. c4 {[%clk 0:03:01.9]} 1... c5 {[%clk 0:02:59.4]} 2. Nc3 {[%clk 0:03:03]} 2...
Nc6 {[%clk 0:02:59.6]} 3. g3 {[%clk 0:03:04.9]} 3... g6 {[%clk 0:02:59.9]} 4.
Bg2 {[%clk 0:03:06.8]} 4... Bg7 {[%clk 0:03:01.4]} 5. Nf3 {[%clk 0:03:07.8]}
5... d6 {[%clk 0:03:02.1]} 6. O-O {[%clk 0:03:09.2]} 6... Bf5 {[%clk 0:03:03]}
7. d3 {[%clk 0:03:06.8]} 7... Qd7 {[%clk 0:03:02.8]} 8. Re1 {[%clk 0:03:07.1]}
8... Nf6 {[%clk 0:02:51.9]} 9. Rb1 {[%clk 0:03:05.9]} 9... O-O {[%clk
0:02:51.2]} 10. a3 {[%clk 0:03:05.5]} 10... Rac8 {[%clk 0:02:44]} 11. b4 {[%clk
0:03:02.3]} 11... b6 {[%clk 0:02:43.8]} 12. Bd2 {[%clk 0:02:35.9]} 12... Rfd8
{[%clk 0:02:31.5]} 13. bxc5 {[%clk 0:02:28.3]} 13... dxc5 {[%clk 0:02:30.8]} 14.
Nb5 {[%clk 0:02:11.7]} 14... Ne8 {[%clk 0:01:59.2]} 15. a4 {[%clk 0:01:51.7]}
15... Nd6 {[%clk 0:01:53.4]} 16. a5 {[%clk 0:01:47.5]} 16... Nxb5 {[%clk
0:01:41.8]} 17. Rxb5 {[%clk 0:01:43]} 17... Nxa5 {[%clk 0:01:00.2]} 18. Bxa5
{[%clk 0:01:39.6]} 18... bxa5 {[%clk 0:01:02.1]} 19. Qd2 {[%clk 0:01:30]} 19...
a4 {[%clk 0:00:59.3]} 20. Qa5 {[%clk 0:01:22]} 20... a6 {[%clk 0:00:46.1]} 21.
Rxc5 {[%clk 0:01:02.1]} 21... Bc3 {[%clk 0:00:46]} 22. Qxc3 {[%clk 0:00:56.8]}
22... Rxc5 {[%clk 0:00:47]} 23. Ra1 {[%clk 0:00:58.3]} 23... Qc7 {[%clk
0:00:36.2]} 24. Rxa4 {[%clk 0:00:50]} 24... Bc8 {[%clk 0:00:36.3]} 25. h4 {[%clk
0:00:47.6]} 25... Bb7 {[%clk 0:00:36.2]} 26. Ra2 {[%clk 0:00:32.2]} 26... a5
{[%clk 0:00:35.3]} 27. Nd2 {[%clk 0:00:28.9]} 27... Bxg2 {[%clk 0:00:35.5]} 28.
Kxg2 {[%clk 0:00:30.8]} 28... a4 {[%clk 0:00:29.5]} 29. d4 {[%clk 0:00:26.6]}
29... Rf5 {[%clk 0:00:25]} 30. e4 {[%clk 0:00:24.9]} 30... Ra5 {[%clk
0:00:20.2]} 31. Ra3 {[%clk 0:00:24.4]} 31... Rda8 {[%clk 0:00:20.6]} 32. c5
{[%clk 0:00:23]} 32... Qc6 {[%clk 0:00:20.4]} 33. f3 {[%clk 0:00:19.6]} 33... e5
{[%clk 0:00:21.1]} 34. dxe5 {[%clk 0:00:14.2]} 34... Qxc5 {[%clk 0:00:21.5]} 35.
Qxc5 {[%clk 0:00:12.1]} 35... Rxc5 {[%clk 0:00:23.4]} 36. Kf2 {[%clk 0:00:11.3]}
36... Rxe5 {[%clk 0:00:22.3]} 37. Ke3 {[%clk 0:00:12.4]} 37... Rb5 {[%clk
0:00:22.7]} 38. f4 {[%clk 0:00:12.5]} 38... Kg7 {[%clk 0:00:23.3]} 39. Kd3
{[%clk 0:00:13.6]} 39... Rd8+ {[%clk 0:00:23]} 40. Ke3 {[%clk 0:00:14.9]} 40...
Rb2 {[%clk 0:00:23.1]} 41. Nc4 {[%clk 0:00:10]} 41... Rb3+ {[%clk 0:00:24]} 42.
Rxb3 {[%clk 0:00:08.5]} 42... axb3 {[%clk 0:00:25.9]} 43. Nb2 {[%clk 0:00:09.7]}
43... h5 {[%clk 0:00:26.1]} 44. Nd3 {[%clk 0:00:09.3]} 44... Rc8 {[%clk
0:00:25.7]} 45. Kd2 {[%clk 0:00:08.1]} 45... Rc2+ {[%clk 0:00:26.6]} 46. Kd1
{[%clk 0:00:09.7]} 46... Rg2 {[%clk 0:00:27.6]} 47. Kc1 {[%clk 0:00:09.2]} 47...
Rxg3 {[%clk 0:00:28.8]} 48. Nc5 {[%clk 0:00:10.1]} 48... Rf3 {[%clk 0:00:28.5]}
49. f5 {[%clk 0:00:10.6]} 49... gxf5 {[%clk 0:00:29]} 0-1

[Event "*** Titled Tuesday Blitz"]
[Site "Chess.com"]
[Date "2018.06.05"]
[Round "8"]
[White "Sanan_Sjugirov"]
[Black "Aygehovit1992"]
[Result "1-0"]
[WhiteElo "2715"]
[BlackElo "2526"]
[TimeControl "180+2"]
[EndTime "14:57:02 PDT"]
[Termination "Sanan_Sjugirov won by resignation"]

1. e4 {[%clk 0:03:01.9]} 1... c5 {[%clk 0:03:00.1]} 2. Nf3 {[%clk 0:03:00.4]}
2... d6 {[%clk 0:03:01]} 3. d4 {[%clk 0:02:59.5]} 3... cxd4 {[%clk 0:03:02]} 4.
Nxd4 {[%clk 0:03:01.4]} 4... Nf6 {[%clk 0:03:03.3]} 5. Nc3 {[%clk 0:03:02.8]}
5... Nc6 {[%clk 0:03:04.2]} 6. Bg5 {[%clk 0:03:02.8]} 6... Bd7 {[%clk
0:03:04.1]} 7. Qd2 {[%clk 0:02:59.6]} 7... h6 {[%clk 0:03:01.2]} 8. Bxf6 {[%clk
0:03:00.1]} 8... gxf6 {[%clk 0:03:02.1]} 9. f4 {[%clk 0:02:57.3]} 9... Rc8
{[%clk 0:02:57.9]} 10. O-O-O {[%clk 0:02:45.8]} 10... Nxd4 {[%clk 0:02:53.3]}
11. Qxd4 {[%clk 0:02:46.4]} 11... Qa5 {[%clk 0:02:54.8]} 12. Kb1 {[%clk
0:02:44]} 12... Qc5 {[%clk 0:02:54.6]} 13. Qd2 {[%clk 0:02:40.5]} 13... Bg7
{[%clk 0:02:54.8]} 14. f5 {[%clk 0:02:38.7]} 14... h5 {[%clk 0:02:55.5]} 15. Nd5
{[%clk 0:02:01.5]} 15... Bh6 {[%clk 0:02:55.4]} 16. Qe2 {[%clk 0:01:59.4]} 16...
a5 {[%clk 0:02:47.5]} 17. c3 {[%clk 0:01:52.7]} 17... b5 {[%clk 0:02:41.6]} 18.
Qxh5 {[%clk 0:01:40.9]} 18... b4 {[%clk 0:02:42.2]} 19. c4 {[%clk 0:01:38.8]}
19... b3 {[%clk 0:02:39.8]} 20. a3 {[%clk 0:01:36.8]} 20... Bb5 {[%clk
0:02:16.7]} 21. Nc3 {[%clk 0:00:27.4]} 21... Bxc4 {[%clk 0:02:09.1]} 22. Bxc4
{[%clk 0:00:29.3]} 22... Qxc4 {[%clk 0:02:11]} 23. Qf3 {[%clk 0:00:28.3]} 23...
Rc5 {[%clk 0:02:04]} 24. h4 {[%clk 0:00:26.8]} 24... Kd7 {[%clk 0:02:02.4]} 25.
g4 {[%clk 0:00:24.3]} 25... Rhc8 {[%clk 0:01:59.9]} 26. Rhg1 {[%clk 0:00:16.5]}
26... Qa6 {[%clk 0:01:19.1]} 27. g5 {[%clk 0:00:15.6]} 27... Bg7 {[%clk
0:01:20.3]} 28. g6 {[%clk 0:00:16.2]} 28... fxg6 {[%clk 0:01:05.1]} 29. Rxg6
{[%clk 0:00:13.4]} 29... Bf8 {[%clk 0:01:00.1]} 30. h5 {[%clk 0:00:12.3]} 30...
Rxc3 {[%clk 0:00:46.2]} 31. bxc3 {[%clk 0:00:14.2]} 31... Qc4 {[%clk 0:00:46.6]}
32. Kb2 {[%clk 0:00:14.2]} 32... Rc5 {[%clk 0:00:26.5]} 33. h6 {[%clk
0:00:11.8]} 33... Re5 {[%clk 0:00:27]} 34. Rd4 {[%clk 0:00:10.9]} 34... Qf7
{[%clk 0:00:17.6]} 35. Rd5 {[%clk 0:00:12]} 35... a4 {[%clk 0:00:09.8]} 36. Rxe5
{[%clk 0:00:12.1]} 36... fxe5 {[%clk 0:00:11.1]} 37. Qf1 {[%clk 0:00:12.3]}
37... Kc7 {[%clk 0:00:05.2]} 38. Qa6 {[%clk 0:00:11.9]} 38... Bxh6 {[%clk
0:00:06.4]} 39. Qa7+ {[%clk 0:00:11.8]} 39... Kc8 {[%clk 0:00:04.6]} 40. Qxa4
{[%clk 0:00:07.8]} 40... Be3 {[%clk 0:00:03.7]} 41. Qxb3 {[%clk 0:00:08]} 41...
Qh7 {[%clk 0:00:03.7]} 42. Qg8+ {[%clk 0:00:07.7]} 42... Qxg8 {[%clk 0:00:04]}
43. Rxg8+ {[%clk 0:00:09.6]} 43... Kd7 {[%clk 0:00:05.2]} 44. Kb3 {[%clk
0:00:11.1]} 44... Bc5 {[%clk 0:00:06.2]} 45. a4 {[%clk 0:00:12.3]} 45... Kc6
{[%clk 0:00:06.9]} 46. Kc4 {[%clk 0:00:13.4]} 1-0

[Event "*** Titled Tuesday Blitz"]
[Site "Chess.com"]
[Date "2018.06.05"]
[Round "8"]
[White "Mr_Penings"]
[Black "Quiet_Desperation"]
[Result "1-0"]
[WhiteElo "2452"]
[BlackElo "2377"]
[TimeControl "180+2"]
[EndTime "14:57:04 PDT"]
[Termination "Mr_Penings won by resignation"]

1. c4 {[%clk 0:02:58.4]} 1... Nf6 {[%clk 0:02:59.3]} 2. Nc3 {[%clk 0:02:57.4]}
2... e6 {[%clk 0:03:00.8]} 3. e4 {[%clk 0:02:58.1]} 3... Nc6 {[%clk 0:03:00.9]}
4. d4 {[%clk 0:02:56.7]} 4... d6 {[%clk 0:03:02.3]} 5. Nf3 {[%clk 0:02:55.3]}
5... Be7 {[%clk 0:02:56.6]} 6. Be2 {[%clk 0:02:45.3]} 6... O-O {[%clk 0:02:57]}
7. O-O {[%clk 0:02:46.1]} 7... e5 {[%clk 0:02:57.9]} 8. d5 {[%clk 0:02:46.5]}
8... Nb8 {[%clk 0:02:58.6]} 9. Ne1 {[%clk 0:02:42.8]} 9... c6 {[%clk 0:02:57.7]}
10. f4 {[%clk 0:02:40.7]} 10... cxd5 {[%clk 0:02:58.9]} 11. fxe5 {[%clk
0:02:34.6]} 11... dxe5 {[%clk 0:02:53.6]} 12. cxd5 {[%clk 0:02:16.2]} 12... Bc5+
{[%clk 0:02:49.3]} 13. Kh1 {[%clk 0:02:17.1]} 13... h6 {[%clk 0:02:47.8]} 14.
Nd3 {[%clk 0:02:07.1]} 14... Bd4 {[%clk 0:02:42.1]} 15. Bf3 {[%clk 0:01:56.8]}
15... a6 {[%clk 0:02:06.5]} 16. Ne2 {[%clk 0:01:54.5]} 16... Nbd7 {[%clk
0:01:57.3]} 17. Nxd4 {[%clk 0:01:53.8]} 17... exd4 {[%clk 0:01:58.4]} 18. e5
{[%clk 0:01:54.9]} 18... Nh7 {[%clk 0:01:59.4]} 19. Re1 {[%clk 0:00:53.6]} 19...
Nb6 {[%clk 0:01:58.7]} 20. Nf4 {[%clk 0:00:49.3]} 20... g5 {[%clk 0:01:43.7]}
21. Nh5 {[%clk 0:00:49.1]} 21... Nxd5 {[%clk 0:01:35.4]} 22. Qxd4 {[%clk
0:00:48.8]} 22... Ne7 {[%clk 0:01:16]} 23. Be3 {[%clk 0:00:42.7]} 23... Qa5
{[%clk 0:00:40.2]} 24. Qc5 {[%clk 0:00:31.9]} 24... Nc6 {[%clk 0:00:29.5]} 25.
Bxc6 {[%clk 0:00:29.3]} 25... Qxc5 {[%clk 0:00:30]} 26. Bxc5 {[%clk 0:00:30.9]}
26... bxc6 {[%clk 0:00:28.8]} 27. Bxf8 {[%clk 0:00:31.9]} 27... Kxf8 {[%clk
0:00:30.4]} 28. Rad1 {[%clk 0:00:31.4]} 28... Be6 {[%clk 0:00:31.3]} 29. b3
{[%clk 0:00:26.5]} 29... a5 {[%clk 0:00:32.4]} 30. Rd6 {[%clk 0:00:21.2]} 30...
Bd5 {[%clk 0:00:33.3]} 31. Rxh6 {[%clk 0:00:20.5]} 31... Kg8 {[%clk 0:00:30]}
32. Nf6+ {[%clk 0:00:19.9]} 32... Nxf6 {[%clk 0:00:30.6]} 33. Rxf6 {[%clk
0:00:21.4]} 33... Kg7 {[%clk 0:00:29.8]} 34. Ref1 {[%clk 0:00:20.6]} 34... a4
{[%clk 0:00:30.5]} 35. h3 {[%clk 0:00:21]} 35... axb3 {[%clk 0:00:31.1]} 36.
axb3 {[%clk 0:00:22.9]} 36... Ra2 {[%clk 0:00:31.7]} 37. R1f2 {[%clk 0:00:22.7]}
37... Rxf2 {[%clk 0:00:31]} 38. Rxf2 {[%clk 0:00:23.1]} 38... Bxb3 {[%clk
0:00:32]} 39. Rf6 {[%clk 0:00:23.9]} 39... Bd5 {[%clk 0:00:32.1]} 40. Kg1 {[%clk
0:00:24.8]} 40... Kf8 {[%clk 0:00:23.7]} 41. Kf2 {[%clk 0:00:25.5]} 41... Be6
{[%clk 0:00:19.9]} 42. Ke3 {[%clk 0:00:24.9]} 42... Ke7 {[%clk 0:00:21]} 43. Kd4
{[%clk 0:00:24.6]} 43... Kd7 {[%clk 0:00:22.3]} 44. Kc5 {[%clk 0:00:25.5]} 44...
Kc7 {[%clk 0:00:23.8]} 45. Rh6 {[%clk 0:00:21.8]} 45... Bd5 {[%clk 0:00:23.4]}
46. g4 {[%clk 0:00:21.9]} 46... Bg2 {[%clk 0:00:20.5]} 47. Rh7 {[%clk
0:00:22.9]} 47... Bd5 {[%clk 0:00:20.6]} 48. Rg7 {[%clk 0:00:23.6]} 48... Kd7
{[%clk 0:00:21.2]} 49. Rxg5 {[%clk 0:00:24]} 49... Ke6 {[%clk 0:00:23.1]} 50.
Rh5 {[%clk 0:00:20.7]} 50... Bg2 {[%clk 0:00:23]} 51. Kd4 {[%clk 0:00:21.1]}
51... Bf3 {[%clk 0:00:22.4]} 52. Ke3 {[%clk 0:00:22]} 52... Bd1 {[%clk
0:00:22.2]} 53. Kf4 {[%clk 0:00:23]} 53... c5 {[%clk 0:00:23.5]} 54. Rh6+ {[%clk
0:00:23.7]} 54... Kd5 {[%clk 0:00:24.7]} 55. Rd6+ {[%clk 0:00:21.8]} 1-0